[Event "Titled Tuesday Blitz August 08 Early 2023"]
[White "Swicarz, Maciej"]
[Black "Mekhitarian, Krikor Sevag"]
[WhiteFideId "1113585"]
[BlackFideId "2107660"]
[WhiteElo "2424"]
[BlackElo "2762"]
[Result "0-1"]
[Round "1"]
[TimeControl "180+1"]
[Date "2023.08.08"]
[WhiteClock "0:00:00"]
[BlackClock "0:00:05"]
[Board "97"]

1. c4 {[%clk 0:02:55]}  c5 {[%clk 0:02:59]} 2. Nf3 {[%clk 0:02:55]}  Nc6 {[%clk 0:02:58]} 3. Nc3 {[%clk 0:02:53]}  e5 {[%clk 0:02:56]} 4. e3 {[%clk 0:02:51]}  Nf6 {[%clk 0:02:53]} 5. d4 {[%clk 0:02:51]}  e4 {[%clk 0:02:54]} 6. Ng5 {[%clk 0:02:45]}  cxd4 {[%clk 0:02:51]} 7. exd4 {[%clk 0:02:45]}  Bb4 {[%clk 0:02:51]} 8. d5 {[%clk 0:02:43]}  Ne5 {[%clk 0:02:46]} 9. Qd4 {[%clk 0:02:40]}  d6 {[%clk 0:02:44]} 10. Nxe4 {[%clk 0:02:39]}  Nxe4 {[%clk 0:02:44]} 11. Qxe4 {[%clk 0:02:39]}  O-O {[%clk 0:02:44]} 12. Be2 {[%clk 0:02:38]}  Re8 {[%clk 0:02:15]} 13. O-O {[%clk 0:02:37]}  Bc5 {[%clk 0:02:15]} 14. Qc2 {[%clk 0:02:33]}  Qh4 {[%clk 0:02:10]} 15. Na4 {[%clk 0:02:02]}  Bd4 {[%clk 0:02:02]} 16. Be3 {[%clk 0:01:53]}  Bxe3 {[%clk 0:01:47]} 17. fxe3 {[%clk 0:01:54]}  Bd7 {[%clk 0:01:38]} 18. Rf4 {[%clk 0:01:47]}  Qg5 {[%clk 0:01:33]} 19. Nc3 {[%clk 0:01:44]}  Ng6 {[%clk 0:01:31]} 20. Rf3 {[%clk 0:01:29]}  Rxe3 {[%clk 0:00:47]} 21. Qd2 {[%clk 0:01:26]}  Re5 {[%clk 0:00:43]} 22. Qxg5 {[%clk 0:01:24]}  Rxg5 {[%clk 0:00:43]} 23. Raf1 {[%clk 0:01:22]}  f6 {[%clk 0:00:33]} 24. Re3 {[%clk 0:01:15]}  Re5 {[%clk 0:00:31]} 25. Rxe5 {[%clk 0:01:12]}  Nxe5 {[%clk 0:00:30]} 26. Ne4 {[%clk 0:01:10]}  Nf7 {[%clk 0:00:30]} 27. Bh5 {[%clk 0:01:08]}  Ne5 {[%clk 0:00:17]} 28. Nxd6 {[%clk 0:01:06]}  b6 {[%clk 0:00:18]} 29. b3 {[%clk 0:01:05]}  Kf8 {[%clk 0:00:18]} 30. Bd1 {[%clk 0:01:02]}  Ke7 {[%clk 0:00:19]} 31. Ne4 {[%clk 0:01:01]}  f5 {[%clk 0:00:19]} 32. Ng3 {[%clk 0:01:01]}  g6 {[%clk 0:00:20]} 33. Bc2 {[%clk 0:01:01]}  Kd6 {[%clk 0:00:20]} 34. Re1 {[%clk 0:01:01]}  a5 {[%clk 0:00:20]} 35. Kf2 {[%clk 0:01:00]}  Rc8 {[%clk 0:00:21]} 36. Bb1 {[%clk 0:00:37]}  b5 {[%clk 0:00:20]} 37. cxb5 {[%clk 0:00:36]}  Bxb5 {[%clk 0:00:18]} 38. Rd1 {[%clk 0:00:34]}  Rc3 {[%clk 0:00:11]} 39. h3 {[%clk 0:00:31]}  h5 {[%clk 0:00:11]} 40. Ne2 {[%clk 0:00:29]}  Bxe2 {[%clk 0:00:11]} 41. Kxe2 {[%clk 0:00:29]}  h4 {[%clk 0:00:10]} 42. Kf2 {[%clk 0:00:27]}  Nd7 {[%clk 0:00:06]} 43. Bd3 {[%clk 0:00:24]}  Nf6 {[%clk 0:00:05]} 44. Rd2 {[%clk 0:00:21]}  Ke5 {[%clk 0:00:02]} 45. Ke2 {[%clk 0:00:13]}  Nxd5 {[%clk 0:00:02]} 46. Bc4 {[%clk 0:00:12]}  Nf4+ {[%clk 0:00:03]} 47. Kf2 {[%clk 0:00:12]}  Rg3 {[%clk 0:00:03]} 48. Kf1 {[%clk 0:00:12]}  g5 {[%clk 0:00:04]} 49. Rf2 {[%clk 0:00:09]}  Kd4 {[%clk 0:00:04]} 50. Rd2+ {[%clk 0:00:09]}  Kc3 {[%clk 0:00:04]} 51. Rf2 {[%clk 0:00:09]}  Re3 {[%clk 0:00:04]} 52. Bf7 {[%clk 0:00:06]}  Nd3 {[%clk 0:00:02]} 53. Re2 {[%clk 0:00:06]}  Rg3 {[%clk 0:00:02]} 54. Bc4 {[%clk 0:00:06]}  Nf4 {[%clk 0:00:02]} 55. Rf2 {[%clk 0:00:06]}  a4 {[%clk 0:00:03]} 56. Bf7 {[%clk 0:00:05]}  a3 {[%clk 0:00:03]} 57. Bg8 {[%clk 0:00:05]}  Kb4 {[%clk 0:00:03]} 58. Bf7 {[%clk 0:00:05]}  Rc3 {[%clk 0:00:03]} 59. Rd2 {[%clk 0:00:05]}  Rc1+ {[%clk 0:00:03]} 60. Kf2 {[%clk 0:00:05]}  Kc3 {[%clk 0:00:03]} 61. Rd8 {[%clk 0:00:02]}  Rc2+ {[%clk 0:00:03]} 62. Kf3 {[%clk 0:00:02]}  Rxa2 {[%clk 0:00:04]} 63. b4 {[%clk 0:00:02]}  Rb2 {[%clk 0:00:03]} 64. Ra8 {[%clk 0:00:02]}  Kxb4 {[%clk 0:00:03]} 65. Rb8+ {[%clk 0:00:02]}  Kc5 {[%clk 0:00:02]} 66. Ra8 {[%clk 0:00:03]}  Kb4 {[%clk 0:00:02]} 67. Rb8+ {[%clk 0:00:03]}  Kc3 {[%clk 0:00:03]} 68. Ra8 {[%clk 0:00:03]}  Kd2 {[%clk 0:00:03]} 69. Rxa3 {[%clk 0:00:03]}  Ke1 {[%clk 0:00:03]} 70. Rb3 {[%clk 0:00:03]}  Rf2+ {[%clk 0:00:02]} 71. Ke3 {[%clk 0:00:02]}  Nxg2+ {[%clk 0:00:03]} 72. Kd3 {[%clk 0:00:02]}  Rf3+ {[%clk 0:00:04]} 73. Kd4 {[%clk 0:00:02]}  Rxb3 {[%clk 0:00:04]} 74. Bxb3 {[%clk 0:00:03]}  Kf2 {[%clk 0:00:04]} 75. Ke5 {[%clk 0:00:03]}  Ne3 {[%clk 0:00:04]} 76. Be6 {[%clk 0:00:02]}  Kg3 {[%clk 0:00:03]} 77. Bxf5 {[%clk 0:00:01]}  Nxf5 {[%clk 0:00:03]} 78. Kxf5 {[%clk 0:00:02]}  Kxh3 {[%clk 0:00:04]} 79. Kxg5 {[%clk 0:00:00]}  Kg3 {[%clk 0:00:05]} 0-1


[Site "https://www.chess.com"]

[Event "Titled Tuesday Blitz August 08 Early 2023"]
[White "Tanenbaum, Zachary"]
[Black "Rangel, Daniel"]
[WhiteFideId "2060850"]
[BlackFideId "2124475"]
[WhiteElo "2752"]
[BlackElo "2422"]
[Result "1-0"]
[Round "1"]
[TimeControl "180+1"]
[Date "2023.08.08"]
[WhiteClock "0:00:18"]
[BlackClock "0:00:02"]
[Board "102"]

1. e4 {[%clk 0:02:30]}  c5 {[%clk 0:02:53]} 2. Nf3 {[%clk 0:02:30]}  g6 {[%clk 0:02:54]} 3. d4 {[%clk 0:02:30]}  cxd4 {[%clk 0:02:53]} 4. Qxd4 {[%clk 0:02:31]}  Nf6 {[%clk 0:02:53]} 5. e5 {[%clk 0:02:31]}  Nc6 {[%clk 0:02:54]} 6. Qa4 {[%clk 0:02:31]}  Nd5 {[%clk 0:02:53]} 7. Qb3 {[%clk 0:02:30]}  Nb6 {[%clk 0:02:48]} 8. Bf4 {[%clk 0:02:30]}  Bg7 {[%clk 0:02:48]} 9. Nc3 {[%clk 0:02:30]}  O-O {[%clk 0:02:47]} 10. O-O-O {[%clk 0:02:30]}  a5 {[%clk 0:02:34]} 11. Be3 {[%clk 0:02:21]}  Nb4 {[%clk 0:02:18]} 12. a3 {[%clk 0:02:07]}  d6 {[%clk 0:01:38]} 13. axb4 {[%clk 0:01:27]}  Be6 {[%clk 0:01:37]} 14. Qa3 {[%clk 0:01:24]}  axb4 {[%clk 0:01:32]} 15. Qxb4 {[%clk 0:01:24]}  Ra1+ {[%clk 0:01:32]} 16. Kd2 {[%clk 0:00:59]}  dxe5+ {[%clk 0:01:29]} 17. Bd3 {[%clk 0:01:00]}  Rxd1+ {[%clk 0:00:57]} 18. Rxd1 {[%clk 0:01:01]}  Nc4+ {[%clk 0:00:57]} 19. Ke2 {[%clk 0:01:01]}  Nxe3 {[%clk 0:00:58]} 20. fxe3 {[%clk 0:01:01]}  Qc7 {[%clk 0:00:54]} 21. Be4 {[%clk 0:00:52]}  Bc4+ {[%clk 0:00:51]} 22. Kf2 {[%clk 0:00:51]}  Ba6 {[%clk 0:00:49]} 23. Nd5 {[%clk 0:00:49]}  Qb8 {[%clk 0:00:47]} 24. Nxe7+ {[%clk 0:00:47]}  Kh8 {[%clk 0:00:48]} 25. Rd7 {[%clk 0:00:46]}  f5 {[%clk 0:00:42]} 26. Bxb7 {[%clk 0:00:34]}  e4 {[%clk 0:00:41]} 27. Nc6 {[%clk 0:00:22]}  Qe8 {[%clk 0:00:30]} 28. Re7 {[%clk 0:00:22]}  exf3 {[%clk 0:00:08]} 29. Rxe8 {[%clk 0:00:21]}  Rxe8 {[%clk 0:00:08]} 30. Bxa6 {[%clk 0:00:19]}  fxg2 {[%clk 0:00:09]} 31. Kxg2 {[%clk 0:00:18]}  h5 {[%clk 0:00:09]} 32. Ne7 {[%clk 0:00:17]}  Kh7 {[%clk 0:00:09]} 33. Qd6 {[%clk 0:00:17]}  Rf8 {[%clk 0:00:01]} 34. Qxg6+ {[%clk 0:00:16]}  Kh8 {[%clk 0:00:02]} 35. Qxh5+ {[%clk 0:00:17]}  Bh6 {[%clk 0:00:02]} 36. Qxh6# {[%clk 0:00:18]} 1-0


[Site "https://www.chess.com"]

[Event "Titled Tuesday Blitz August 08 Early 2023"]
[White "Skvortsov, Andrei"]
[Black "Khromkin, Andrey"]
[WhiteFideId "24108600"]
[BlackFideId "4154126"]
[WhiteElo "2749"]
[BlackElo "2417"]
[Result "1-0"]
[Round "1"]
[TimeControl "180+1"]
[Date "2023.08.08"]
[WhiteClock "0:01:22"]
[BlackClock "0:00:00"]
[Board "104"]

1. e4 {[%clk 0:02:59]}  c5 {[%clk 0:02:44]} 2. d4 {[%clk 0:02:56]}  cxd4 {[%clk 0:02:43]} 3. Qxd4 {[%clk 0:02:57]}  Nc6 {[%clk 0:02:42]} 4. Qd3 {[%clk 0:02:56]}  g6 {[%clk 0:02:42]} 5. Nf3 {[%clk 0:02:55]}  Bg7 {[%clk 0:02:43]} 6. Nc3 {[%clk 0:02:52]}  Nf6 {[%clk 0:02:42]} 7. Be2 {[%clk 0:02:50]}  O-O {[%clk 0:02:42]} 8. O-O {[%clk 0:02:50]}  d6 {[%clk 0:02:41]} 9. Nd5 {[%clk 0:02:50]}  Be6 {[%clk 0:02:28]} 10. c3 {[%clk 0:02:47]}  Ng4 {[%clk 0:02:13]} 11. Bg5 {[%clk 0:02:45]}  Nge5 {[%clk 0:02:04]} 12. Nxe5 {[%clk 0:02:44]}  Bxd5 {[%clk 0:02:00]} 13. exd5 {[%clk 0:02:41]}  Nxe5 {[%clk 0:02:00]} 14. Qe3 {[%clk 0:02:40]}  Re8 {[%clk 0:01:56]} 15. a4 {[%clk 0:02:38]}  Qb6 {[%clk 0:01:55]} 16. Bb5 {[%clk 0:02:35]}  Qxe3 {[%clk 0:01:44]} 17. fxe3 {[%clk 0:02:35]}  h6 {[%clk 0:01:41]} 18. Bxe8 {[%clk 0:02:33]}  hxg5 {[%clk 0:01:41]} 19. Bb5 {[%clk 0:02:34]}  f5 {[%clk 0:01:27]} 20. Ra3 {[%clk 0:02:27]}  g4 {[%clk 0:01:22]} 21. Be2 {[%clk 0:02:26]}  Bh6 {[%clk 0:01:19]} 22. Kf2 {[%clk 0:02:26]}  g5 {[%clk 0:01:14]} 23. Rb3 {[%clk 0:02:24]}  Rb8 {[%clk 0:01:13]} 24. h3 {[%clk 0:02:16]}  gxh3 {[%clk 0:01:08]} 25. gxh3 {[%clk 0:02:17]}  Kf7 {[%clk 0:01:04]} 26. Rb4 {[%clk 0:02:13]}  Kf6 {[%clk 0:01:03]} 27. Kg3 {[%clk 0:02:13]}  f4+ {[%clk 0:00:45]} 28. exf4 {[%clk 0:02:11]}  gxf4+ {[%clk 0:00:45]} 29. Rfxf4+ {[%clk 0:02:10]}  Bxf4+ {[%clk 0:00:45]} 30. Rxf4+ {[%clk 0:02:11]}  Kg7 {[%clk 0:00:44]} 31. h4 {[%clk 0:02:11]}  Ng6 {[%clk 0:00:22]} 32. Rg4 {[%clk 0:02:09]}  Kh6 {[%clk 0:00:22]} 33. Rc4 {[%clk 0:01:58]}  Rg8 {[%clk 0:00:19]} 34. Kf2 {[%clk 0:01:51]}  Rg7 {[%clk 0:00:13]} 35. Rc7 {[%clk 0:01:50]}  Nxh4 {[%clk 0:00:13]} 36. Rxb7 {[%clk 0:01:48]}  Rg2+ {[%clk 0:00:13]} 37. Ke1 {[%clk 0:01:46]}  Nf5 {[%clk 0:00:11]} 38. Bf1 {[%clk 0:01:44]}  Rh2 {[%clk 0:00:10]} 39. Bd3 {[%clk 0:01:41]}  Ng3 {[%clk 0:00:07]} 40. b4 {[%clk 0:01:38]}  Rh1+ {[%clk 0:00:03]} 41. Kf2 {[%clk 0:01:36]}  Nh5 {[%clk 0:00:04]} 42. Rxe7 {[%clk 0:01:35]}  Nf4 {[%clk 0:00:05]} 43. Bf1 {[%clk 0:01:35]}  Nxd5 {[%clk 0:00:04]} 44. Re6+ {[%clk 0:01:32]}  Kg5 {[%clk 0:00:05]} 45. Bg2 {[%clk 0:01:27]}  Nf4 {[%clk 0:00:03]} 46. Bxh1 {[%clk 0:01:27]}  Nxe6 {[%clk 0:00:03]} 47. Ke3 {[%clk 0:01:27]}  Kf6 {[%clk 0:00:03]} 48. Ke4 {[%clk 0:01:27]}  Nc7 {[%clk 0:00:04]} 49. Kd4 {[%clk 0:01:28]}  Ke7 {[%clk 0:00:05]} 50. Bc6 {[%clk 0:01:28]}  Kd8 {[%clk 0:00:04]} 51. Ke4 {[%clk 0:01:25]}  Na6 {[%clk 0:00:01]} 52. Kd5 {[%clk 0:01:23]}  Kc7 {[%clk 0:00:02]} 53. Bb5 {[%clk 0:01:23]}  Nb8 {[%clk 0:00:02]} 54. a5 {[%clk 0:01:22]}  a6 {[%clk 0:00:00]} 55. Ba4 {[%clk 0:01:22]} 1-0


[Site "https://www.chess.com"]

[Event "Titled Tuesday Blitz August 08 Early 2023"]
[White "Panchenko, Dmitry"]
[Black "Avazkhonov, Alikhon"]
[WhiteFideId "4169158"]
[BlackFideId "14208504"]
[WhiteElo "2744"]
[BlackElo "2414"]
[Result "1-0"]
[Round "1"]
[TimeControl "180+1"]
[Date "2023.08.08"]
[WhiteClock "0:00:11"]
[BlackClock "0:00:00"]
[Board "106"]

1. e4 {[%clk 0:02:56]}  c5 {[%clk 0:02:59]} 2. Nf3 {[%clk 0:02:55]}  d6 {[%clk 0:03:00]} 3. d4 {[%clk 0:02:56]}  cxd4 {[%clk 0:03:01]} 4. Nxd4 {[%clk 0:02:57]}  Nf6 {[%clk 0:03:01]} 5. Nc3 {[%clk 0:02:57]}  a6 {[%clk 0:03:01]} 6. Be3 {[%clk 0:02:57]}  e5 {[%clk 0:03:01]} 7. Nde2 {[%clk 0:02:56]}  b5 {[%clk 0:02:59]} 8. Nd5 {[%clk 0:02:43]}  Nbd7 {[%clk 0:02:59]} 9. Nec3 {[%clk 0:02:40]}  Bb7 {[%clk 0:02:59]} 10. f3 {[%clk 0:02:39]}  Rc8 {[%clk 0:02:42]} 11. a4 {[%clk 0:02:38]}  Nxd5 {[%clk 0:02:36]} 12. Nxd5 {[%clk 0:02:36]}  bxa4 {[%clk 0:01:23]} 13. Rxa4 {[%clk 0:02:29]}  Nc5 {[%clk 0:01:11]} 14. Bxc5 {[%clk 0:02:13]}  Rxc5 {[%clk 0:01:12]} 15. Bxa6 {[%clk 0:02:09]}  Bxd5 {[%clk 0:01:05]} 16. exd5 {[%clk 0:02:09]}  Qb6 {[%clk 0:01:02]} 17. c4 {[%clk 0:01:54]}  Be7 {[%clk 0:00:42]} 18. Bb5+ {[%clk 0:01:47]}  Rxb5 {[%clk 0:00:42]} 19. cxb5 {[%clk 0:01:43]}  O-O {[%clk 0:00:42]} 20. Qd3 {[%clk 0:01:16]}  Rc8 {[%clk 0:00:29]} 21. Ke2 {[%clk 0:01:15]}  g6 {[%clk 0:00:24]} 22. Rc4 {[%clk 0:00:55]}  Ra8 {[%clk 0:00:22]} 23. Rc6 {[%clk 0:00:48]}  Qa5 {[%clk 0:00:18]} 24. Rhc1 {[%clk 0:00:45]}  Kg7 {[%clk 0:00:13]} 25. b6 {[%clk 0:00:42]}  Qb4 {[%clk 0:00:12]} 26. R1c2 {[%clk 0:00:33]}  Ra2 {[%clk 0:00:10]} 27. Qc4 {[%clk 0:00:26]}  Rxb2 {[%clk 0:00:06]} 28. Qxb4 {[%clk 0:00:26]}  Rxb4 {[%clk 0:00:06]} 29. Rc7 {[%clk 0:00:13]}  Bd8 {[%clk 0:00:06]} 30. Rd7 {[%clk 0:00:14]}  Bxb6 {[%clk 0:00:06]} 31. Rxd6 {[%clk 0:00:14]}  Bd4 {[%clk 0:00:03]} 32. Rd7 {[%clk 0:00:13]}  g5 {[%clk 0:00:01]} 33. d6 {[%clk 0:00:13]}  Kg6 {[%clk 0:00:00]} 34. Rdc7 {[%clk 0:00:11]} 1-0


[Site "https://www.chess.com"]

[Event "Titled Tuesday Blitz August 08 Early 2023"]
[White "Kukreja Sankalp"]
[Black "Koellner, Ruben Gideon"]
[WhiteFideId "45027676"]
[BlackFideId "12993093"]
[WhiteElo "2412"]
[BlackElo "2742"]
[Result "1-0"]
[Round "1"]
[TimeControl "180+1"]
[Date "2023.08.08"]
[WhiteClock "0:00:25"]
[BlackClock "0:00:00"]
[Board "109"]

1. e4 {[%clk 0:03:00]}  d6 {[%clk 0:02:59]} 2. d4 {[%clk 0:03:00]}  Nf6 {[%clk 0:02:59]} 3. Nc3 {[%clk 0:02:56]}  e5 {[%clk 0:02:59]} 4. Nf3 {[%clk 0:02:51]}  Nbd7 {[%clk 0:02:58]} 5. Bc4 {[%clk 0:02:50]}  Be7 {[%clk 0:02:57]} 6. O-O {[%clk 0:02:36]}  c6 {[%clk 0:02:56]} 7. a4 {[%clk 0:02:34]}  h6 {[%clk 0:02:55]} 8. Re1 {[%clk 0:02:34]}  Qc7 {[%clk 0:02:55]} 9. Be3 {[%clk 0:02:34]}  Nf8 {[%clk 0:02:52]} 10. h3 {[%clk 0:02:29]}  g5 {[%clk 0:02:52]} 11. dxe5 {[%clk 0:02:29]}  dxe5 {[%clk 0:02:53]} 12. Nxe5 {[%clk 0:02:29]}  Qxe5 {[%clk 0:02:32]} 13. Bd4 {[%clk 0:02:23]}  Qf4 {[%clk 0:02:32]} 14. g3 {[%clk 0:01:59]}  Qc7 {[%clk 0:02:26]} 15. e5 {[%clk 0:01:46]}  Be6 {[%clk 0:01:46]} 16. exf6 {[%clk 0:01:37]}  Bd6 {[%clk 0:01:43]} 17. Bxe6 {[%clk 0:01:24]}  Nxe6 {[%clk 0:01:43]} 18. Rxe6+ {[%clk 0:01:18]}  fxe6 {[%clk 0:01:36]} 19. f7+ {[%clk 0:01:15]}  Kxf7 {[%clk 0:01:36]} 20. Qh5+ {[%clk 0:01:12]}  Ke7 {[%clk 0:01:35]} 21. Bxh8 {[%clk 0:01:03]}  Rxh8 {[%clk 0:01:36]} 22. Ne4 {[%clk 0:01:04]}  Be5 {[%clk 0:01:33]} 23. Rd1 {[%clk 0:00:45]}  Bg7 {[%clk 0:00:35]} 24. Qg6 {[%clk 0:00:36]}  Qe5 {[%clk 0:00:20]} 25. Nc5 {[%clk 0:00:24]}  Rd8 {[%clk 0:00:01]} 26. Rxd8 {[%clk 0:00:24]}  Kxd8 {[%clk 0:00:00]} 27. Nxe6+ {[%clk 0:00:25]} 1-0


[Site "https://www.chess.com"]

[Event "Titled Tuesday Blitz August 08 Early 2023"]
[White "Dishman, Stephen"]
[Black "Prohaszka, Peter"]
[WhiteFideId "403024"]
[BlackFideId "726265"]
[WhiteElo "2406"]
[BlackElo "2733"]
[Result "0-1"]
[Round "1"]
[TimeControl "180+1"]
[Date "2023.08.08"]
[WhiteClock "0:00:04"]
[BlackClock "0:00:03"]
[Board "113"]

1. c4 {[%clk 0:03:00]}  e6 {[%clk 0:02:58]} 2. Nf3 {[%clk 0:03:00]}  d5 {[%clk 0:02:58]} 3. d4 {[%clk 0:03:00]}  Nf6 {[%clk 0:02:59]} 4. g3 {[%clk 0:03:00]}  Be7 {[%clk 0:02:44]} 5. Bg2 {[%clk 0:03:00]}  O-O {[%clk 0:02:45]} 6. O-O {[%clk 0:03:00]}  c6 {[%clk 0:02:46]} 7. Qc2 {[%clk 0:03:00]}  b6 {[%clk 0:02:46]} 8. Nbd2 {[%clk 0:02:57]}  Bb7 {[%clk 0:02:46]} 9. e4 {[%clk 0:02:57]}  Na6 {[%clk 0:02:45]} 10. a3 {[%clk 0:02:54]}  Rc8 {[%clk 0:02:25]} 11. b4 {[%clk 0:02:40]}  c5 {[%clk 0:02:25]} 12. exd5 {[%clk 0:02:23]}  exd5 {[%clk 0:02:22]} 13. dxc5 {[%clk 0:02:15]}  bxc5 {[%clk 0:02:17]} 14. b5 {[%clk 0:02:14]}  Nc7 {[%clk 0:02:16]} 15. Ne5 {[%clk 0:02:11]}  Qd6 {[%clk 0:02:06]} 16. Bb2 {[%clk 0:02:09]}  Ba8 {[%clk 0:01:41]} 17. a4 {[%clk 0:01:54]}  Ne6 {[%clk 0:01:20]} 18. Nb3 {[%clk 0:01:46]}  Nd4 {[%clk 0:00:48]} 19. Nxd4 {[%clk 0:01:40]}  cxd4 {[%clk 0:00:47]} 20. Ba3 {[%clk 0:01:30]}  Qc7 {[%clk 0:00:36]} 21. Bxe7 {[%clk 0:01:20]}  Qxe7 {[%clk 0:00:36]} 22. Rfe1 {[%clk 0:01:19]}  Qc5 {[%clk 0:00:28]} 23. Rac1 {[%clk 0:01:13]}  Rfe8 {[%clk 0:00:23]} 24. Nc6 {[%clk 0:00:53]}  Rxe1+ {[%clk 0:00:19]} 25. Rxe1 {[%clk 0:00:53]}  Bxc6 {[%clk 0:00:19]} 26. bxc6 {[%clk 0:00:51]}  Qxc6 {[%clk 0:00:15]} 27. Qf5 {[%clk 0:00:25]}  Qxc4 {[%clk 0:00:15]} 28. g4 {[%clk 0:00:20]}  h6 {[%clk 0:00:15]} 29. h4 {[%clk 0:00:20]}  Qc2 {[%clk 0:00:12]} 30. Qf4 {[%clk 0:00:16]}  d3 {[%clk 0:00:10]} 31. Bf3 {[%clk 0:00:13]}  d2 {[%clk 0:00:09]} 32. Rd1 {[%clk 0:00:14]}  Ne4 {[%clk 0:00:07]} 33. Bxe4 {[%clk 0:00:13]}  Qxd1+ {[%clk 0:00:04]} 34. Kg2 {[%clk 0:00:11]}  dxe4 {[%clk 0:00:03]} 35. Qf5 {[%clk 0:00:12]}  Qc2 {[%clk 0:00:03]} 36. g5 {[%clk 0:00:10]}  hxg5 {[%clk 0:00:03]} 37. hxg5 {[%clk 0:00:09]}  d1=Q {[%clk 0:00:03]} 38. g6 {[%clk 0:00:10]}  fxg6 {[%clk 0:00:02]} 39. Qe6+ {[%clk 0:00:10]}  Kf8 {[%clk 0:00:02]} 40. Qxc8+ {[%clk 0:00:08]}  Qxc8 {[%clk 0:00:02]} 41. Kg3 {[%clk 0:00:07]}  Qf3+ {[%clk 0:00:03]} 42. Kh2 {[%clk 0:00:04]}  Qch3+ {[%clk 0:00:03]} 0-1


[Site "https://www.chess.com"]

[Event "Titled Tuesday Blitz August 08 Early 2023"]
[White "Djordjevic, Vuk"]
[Black "Stork, Oliver"]
[WhiteFideId "902098"]
[BlackFideId "12955728"]
[WhiteElo "2733"]
[BlackElo "2405"]
[Result "1-0"]
[Round "1"]
[TimeControl "180+1"]
[Date "2023.08.08"]
[WhiteClock "0:00:09"]
[BlackClock "0:00:05"]
[Board "114"]

1. d4 {[%clk 0:03:00]}  Nf6 {[%clk 0:02:59]} 2. Bg5 {[%clk 0:03:01]}  d5 {[%clk 0:02:56]} 3. Bxf6 {[%clk 0:02:55]}  exf6 {[%clk 0:02:55]} 4. e3 {[%clk 0:02:54]}  Bd6 {[%clk 0:02:55]} 5. c4 {[%clk 0:02:53]}  dxc4 {[%clk 0:02:26]} 6. Bxc4 {[%clk 0:02:54]}  O-O {[%clk 0:02:26]} 7. Nc3 {[%clk 0:02:54]}  Nc6 {[%clk 0:01:56]} 8. Nf3 {[%clk 0:02:50]}  Bg4 {[%clk 0:01:52]} 9. O-O {[%clk 0:02:43]}  Qd7 {[%clk 0:01:37]} 10. Ne4 {[%clk 0:02:37]}  Rae8 {[%clk 0:01:27]} 11. Nxd6 {[%clk 0:02:33]}  Qxd6 {[%clk 0:01:16]} 12. Rc1 {[%clk 0:02:33]}  f5 {[%clk 0:01:15]} 13. Bb5 {[%clk 0:02:27]}  Rd8 {[%clk 0:00:47]} 14. Be2 {[%clk 0:01:55]}  f4 {[%clk 0:00:33]} 15. Rc3 {[%clk 0:01:49]}  Rfe8 {[%clk 0:00:26]} 16. Bc4 {[%clk 0:01:47]}  Qg6 {[%clk 0:00:20]} 17. d5 {[%clk 0:01:17]}  Ne5 {[%clk 0:00:19]} 18. Be2 {[%clk 0:01:14]}  Nxf3+ {[%clk 0:00:19]} 19. Bxf3 {[%clk 0:01:13]}  Bxf3 {[%clk 0:00:20]} 20. Qxf3 {[%clk 0:01:13]}  fxe3 {[%clk 0:00:20]} 21. fxe3 {[%clk 0:01:12]}  Rd7 {[%clk 0:00:19]} 22. Rfc1 {[%clk 0:01:08]}  Qd6 {[%clk 0:00:18]} 23. e4 {[%clk 0:00:48]}  h6 {[%clk 0:00:17]} 24. a3 {[%clk 0:00:47]}  Ree7 {[%clk 0:00:16]} 25. Rc4 {[%clk 0:00:45]}  Qe5 {[%clk 0:00:16]} 26. Qc3 {[%clk 0:00:41]}  Qf4 {[%clk 0:00:15]} 27. Rf1 {[%clk 0:00:36]}  Qe5 {[%clk 0:00:14]} 28. Qc2 {[%clk 0:00:28]}  f6 {[%clk 0:00:13]} 29. b4 {[%clk 0:00:25]}  Qd6 {[%clk 0:00:10]} 30. Rf3 {[%clk 0:00:22]}  Re5 {[%clk 0:00:10]} 31. Rfc3 {[%clk 0:00:20]}  Rde7 {[%clk 0:00:11]} 32. Rxc7 {[%clk 0:00:19]}  Rxc7 {[%clk 0:00:10]} 33. Rxc7 {[%clk 0:00:18]}  Qb6+ {[%clk 0:00:09]} 34. Rc5 {[%clk 0:00:13]}  Qa6 {[%clk 0:00:07]} 35. a4 {[%clk 0:00:13]}  Rg5 {[%clk 0:00:05]} 36. h4 {[%clk 0:00:12]}  Rg3 {[%clk 0:00:05]} 37. Rc3 {[%clk 0:00:11]}  Rxc3 {[%clk 0:00:05]} 38. Qxc3 {[%clk 0:00:12]}  Qxa4 {[%clk 0:00:05]} 39. Qd4 {[%clk 0:00:11]}  Qc2 {[%clk 0:00:03]} 40. d6 {[%clk 0:00:10]}  Qc1+ {[%clk 0:00:03]} 41. Kf2 {[%clk 0:00:11]}  Qf4+ {[%clk 0:00:04]} 42. Ke2 {[%clk 0:00:11]}  Qg4+ {[%clk 0:00:04]} 43. Kd3 {[%clk 0:00:11]}  Qd1+ {[%clk 0:00:03]} 44. Kc4 {[%clk 0:00:10]}  Qxd4+ {[%clk 0:00:03]} 45. Kxd4 {[%clk 0:00:10]}  Kf7 {[%clk 0:00:04]} 46. Kd5 {[%clk 0:00:08]}  Ke8 {[%clk 0:00:04]} 47. Ke6 {[%clk 0:00:05]}  a5 {[%clk 0:00:04]} 48. bxa5 {[%clk 0:00:05]}  Kd8 {[%clk 0:00:04]} 49. d7 {[%clk 0:00:05]}  g5 {[%clk 0:00:04]} 50. h5 {[%clk 0:00:05]}  g4 {[%clk 0:00:04]} 51. Kxf6 {[%clk 0:00:05]}  g3 {[%clk 0:00:05]} 52. e5 {[%clk 0:00:05]}  Kxd7 {[%clk 0:00:04]} 53. Kf7 {[%clk 0:00:06]}  Kc6 {[%clk 0:00:03]} 54. e6 {[%clk 0:00:07]}  Kb5 {[%clk 0:00:04]} 55. e7 {[%clk 0:00:08]}  Ka6 {[%clk 0:00:05]} 56. e8=Q {[%clk 0:00:09]}  Ka7 {[%clk 0:00:05]} 57. Qd8 {[%clk 0:00:09]}  Ka6 {[%clk 0:00:05]} 58. Qb6# {[%clk 0:00:09]} 1-0


[Site "https://www.chess.com"]